fUST/lending_fUST_20240325
["ID","MTS","AMOUNT","RATE_DAILY","PERIOD"]
[320403453,1711360147490,-500.0,0.00028999,2]
[320403454,1711360147513,-500.0,0.00028999,2]
[320403455,1711360147533,-500.0,0.00028999,2]
[320403456,1711360147554,-500.0,0.00028999,2]
[320403457,1711360147576,-500.0,0.00028999,2]
[320403458,1711360147602,-500.0,0.00028999,2]
[320403459,1711360147624,-500.0,0.00028999,2]
[320403460,1711360147646,-500.0,0.00028999,2]
[320403461,1711360147668,-500.0,0.00028999,2]
[320403462,1711360147690,-13271.83447743,0.00029,2]
[320403463,1711360148148,-49242.00826256,0.00029,2]
[320403464,1711360148170,-187.4282719,0.00031443,2]
[320403465,1711360148191,-157.91315664,0.00031543,7]
[320403466,1711360148213,-183.753945,0.0003173,2]
[320403467,1711360148234,-166.666666,0.00031929,2]
[320403468,1711360148255,-190.136394,0.00032191,2]
[320403469,1711360148279,-1180.188205,0.00032197,2]
[320403470,1711360148301,-383.5693715,0.00032197,2]
[320403471,1711360148321,-798.2124528,0.00032345,2]
[320403472,1711360148342,-214.4949099,0.00032356,2]
[320403473,1711360148362,-2479.6847925,0.00032604,2]
[320403474,1711360148381,-1460.7697684,0.00032615,2]
[320403475,1711360148403,-166.666666,0.00032799,2]
[320403476,1711360148424,-157.91315664,0.00033471,7]
[320403477,1711360148448,-154.29913819,0.00033621,7]
[320403478,1711360148469,-166.666666,0.0003367,2]
[320403479,1711360148492,-865.39980906,0.00034,4]
[320403480,1711360148515,-20989.30913984,0.00034278,2]
[320403481,1711360150088,-1738.90207984,0.00034278,2]
[320403483,1711360155105,-500.0,0.00034278,2]
[320403484,1711360155135,-154.95351395,0.00034278,2]
[320403485,1711360160097,-523.99205646,0.00034278,2]
[320403486,1711360160123,-992.84320991,0.00034278,2]
[320403487,1711360160144,-166.666666,0.0003454,2]
[320403488,1711360160166,-1822.42783438,0.00035,2]
[320403489,1711360160186,-166.666666,0.00035411,2]
[320403490,1711360160210,-150.89437394,0.00035501,2]
[320403491,1711360160232,-764.080653,0.00035616,120]
[320403492,1711360160253,-166.666666,0.00036281,2]
[320403493,1711360160276,-155.27760472,0.00037276,4]
[320403494,1711360160297,-751.8105853,0.00038,4]
[320403495,1711360160318,-279.97263509,0.00039238,4]
[320403496,1711360160339,-170.58466675,0.00039238,4]
[320403497,1711360160363,-205.67956212,0.00039238,4]
[320403498,1711360160385,-1869.9293003,0.00039239,4]
[320403499,1711360160409,-150.89437394,0.00039446,2]
[320403500,1711360160432,-301.78874788,0.00040109,4]
[320403501,1711360160456,-603.57749575,0.00040783,7]
[320403502,1711360160479,-764.080653,0.00041553,120]
[320403503,1711360160501,-187.4282719,0.00041562,2]
[320403504,1711360160523,-157.91315664,0.00042751,30]
[320403505,1711360160545,-764.080653,0.00047489,120]
[320403506,1711360160567,-169.473851,0.00047915,4]
[320403507,1711360163149,-500.0,0.00027128,2]
[320403509,1711360180659,122.98961643,0.00027128,2]
[320403562,1711360232644,-377.01038357,0.00027128,2]
[320403564,1711360232654,-176.25,0.00028579,30]
[320403566,1711360232665,-1691.8047157,0.00032178,2]
[320403568,1711360232674,-1691.8047157,0.00037178,2]
[320403571,1711360232683,-1691.8047157,0.00042178,2]
[320403574,1711360232692,-590.094102,0.0004323,2]
[320403577,1711360232704,-1397.52098143,0.00046895,120]
[320403580,1711360232716,-1885.81030311,0.00046895,120]
[320403583,1711360232728,-1400.5149344,0.00046895,120]
[320403586,1711360232738,-19945.30930365,0.00046983,120]
[320403590,1711360232749,-4539.5946559,0.00047915,4]
[320403592,1711360232759,-500.0,0.00047918,2]
[320403595,1711360232769,-500.0,0.00047918,2]
[320403600,1711360232779,-500.0,0.00047918,2]
[320403603,1711360232789,-500.0,0.00047918,2]
[320403604,1711360232799,-500.0,0.00047918,2]
[320403607,1711360232808,-20.688961,0.00047918,2]
[320404215,1711360239446,-266.16270528,0.00046894,4]
[320404217,1711360239460,-470.94318688,0.00046894,4]
[320404242,1711360239785,-128.2939169,0.00046894,4]
[320404244,1711360239794,-479.311039,0.00047918,2]
[320404246,1711360239803,-731.90778718,0.00048,90]
[320404248,1711360239815,-32.30230759,0.00048,90]
[320404250,1711360239824,-301.39769242,0.00048989,2]
[320404527,1711360243126,-198.60230758,0.00048989,2]
[320404528,1711360243135,-337.12691269,0.00049187,4]
[320404529,1711360243145,-64.27355923,0.000497,120]
[320404533,1711360243390,-9935.72644077,0.000497,120]
[320404534,1711360243400,-2014.37190163,0.00049827,7]
[320404535,1711360243410,-2227.47752601,0.0005,60]
[320404536,1711360243419,-1000.0,0.0005,120]
[320404537,1711360243428,-275.74710967,0.0005,4]
[320404665,1711360246081,-2924.20489033,0.0005,4]
[320404668,1711360246090,-898.33125512,0.00051,4]
[320404671,1711360246101,-187.4282719,0.0005168,2]
[320404674,1711360246110,-236.69103763,0.00051725,120]
[320404677,1711360246120,-500.0,0.00051725,120]
[320404681,1711360246130,-7756.68543965,0.00051726,10]
[320404683,1711360246139,-1047.01480357,0.00051776,4]
[320404687,1711360246148,-405.38355361,0.00051776,4]
[320404689,1711360246157,-155.55352576,0.00051776,4]
[320404692,1711360246166,-192.09614906,0.00051776,4]
[320404695,1711360246175,-187.78507347,0.00051776,2]
[320404698,1711360246184,-302.59359524,0.00051776,4]
[320404701,1711360246193,-884.56017024,0.00051777,4]
[320404925,1711360248167,2057.31,0.00023744,2]
[320405166,1711360250459,352.2197,0.00026939,30]
[320405815,1711360265100,524.73287569,0.00021989,2]
[320405816,1711360273363,500.0,0.00023744,2]
[320405817,1711360291175,500.0,0.00023744,2]
[320405823,1711360307389,500.0,0.00023744,2]
[320405829,1711360327194,500.0,0.00023744,2]
[320405830,1711360343192,500.0,0.00023744,2]
[320405832,1711360346269,4852.33320724,0.00023744,2]
[320405836,1711360361190,500.0,0.00023744,2]
[320405837,1711360364262,237.82761695,0.00023744,2]
[320405838,1711360364926,14409.83917581,0.00023744,2]
[320405839,1711360368627,-4288.0,0.00023744,2]
[320405841,1711360376483,-367.38643664,0.00023744,2]
[320405843,1711360377184,500.0,0.00023744,2]
[320405847,1711360393433,7945.5499296,0.00023744,2]
[320405848,1711360399189,500.0,0.00023744,2]
[320405849,1711360415200,500.0,0.00023744,2]
[320405851,1711360435739,1931.14361727,0.0002,2]
[320405853,1711360439187,500.0,0.00023744,2]
[320405859,1711360457190,500.0,0.00023744,2]
[320405860,1711360458578,205.46712844,0.000195,2]
[320405861,1711360461720,3742.33025183,0.000125,2]
[320405868,1711360475369,500.0,0.00023744,2]
[320405873,1711360495194,500.0,0.000125,2]
[320405874,1711360511192,500.0,0.000125,2]
[320405876,1711360531193,500.0,0.000125,2]
[320405880,1711360547195,500.0,0.000125,2]
[320405882,1711360565196,500.0,0.000125,2]
[320405883,1711360569318,-154.8915759,0.00027498,2]
[320405884,1711360569347,-1478.45909339,0.00027498,2]
[320405885,1711360569375,-1888.81529834,0.00027499,2]
[320405886,1711360569541,-19695.99657379,0.000275,2]
[320405887,1711360569572,-187.42641187,0.00027691,2]
[320405888,1711360569600,-3509.19508101,0.00027791,2]
[320405889,1711360569631,-300.0,0.00027792,2]
[320405890,1711360569661,-2855.35363191,0.00027794,2]
[320405891,1711360569690,-154.2991382,0.00027894,2]
[320405892,1711360569721,-6980.75608819,0.000285,2]
[320405893,1711360569753,-166.666666,0.00033686,2]
[320405894,1711360569783,-865.39980906,0.00034,4]
[320405895,1711360569883,200.0,0.00033914,2]
[320405896,1711360570605,1922.02642136,0.00027497,2]
[320405897,1711360585214,500.0,0.000125,2]
[320405898,1711360605215,500.0,0.00027497,2]
[320405899,1711360625217,500.0,0.00027497,2]
[320405900,1711360636753,155.11353056,0.00026119,2]
[320405901,1711360637824,155.11353056,0.00027389,2]
[320405902,1711360638345,155.11353056,0.00030577,7]
[320405903,1711360643222,500.0,0.00027497,2]
[320405904,1711360662239,527.76401956,0.00028999,2]
[320405905,1711360663233,500.0,0.00027497,2]
[320405906,1711360664827,187.42641187,0.00028487,2]
[320405907,1711360678729,683.96804349,0.00028586,2]
[320405908,1711360679225,500.0,0.00027497,2]
[320405909,1711360697606,500.0,0.00027497,2]
[320405911,1711360715241,500.0,0.00027497,2]
[320405912,1711360735291,500.0,0.00027497,2]
[320405913,1711360739893,309.11996913,0.00028487,2]
[320405914,1711360751225,500.0,0.00028487,2]
[320405915,1711360755985,2000.0,0.00027976,2]
[320405917,1711360771225,500.0,0.00028487,2]
[320405918,1711360793236,500.0,0.00028487,2]
[320405919,1711360807363,628.64908082,0.00027358,2]
[320405920,1711360813246,500.0,0.00028487,2]
[320405921,1711360827224,187.42641187,0.00028424,2]
[320405922,1711360831242,500.0,0.00028487,2]
[320405923,1711360847247,500.0,0.00028487,2]
[320405924,1711360875255,500.0,0.00028487,2]
[320405925,1711360891261,500.0,0.00028487,2]
[320405926,1711360911250,500.0,0.00028487,2]
[320405927,1711360929266,500.0,0.00028487,2]
[320405928,1711360939612,160.92436103,0.00024139,2]
[320405929,1711360951329,500.0,0.00028487,2]
[320405930,1711360971255,500.0,0.00028487,2]
[320405931,1711360991259,500.0,0.00028487,2]
[320405932,1711361013262,500.0,0.00028487,2]
[320405933,1711361033262,500.0,0.00028487,2]
[320405934,1711361039748,865.39980906,0.00034,4]
[320405936,1711361053272,500.0,0.00028487,2]
[320405938,1711361069270,500.0,0.00028487,2]
[320405939,1711361085264,500.0,0.00028487,2]
[320405940,1711361101267,500.0,0.00028487,2]
[320405941,1711361123269,500.0,0.00028487,2]
[320405942,1711361130415,931.6812301,0.00028521,2]
[320405943,1711361143152,-155.11353056,0.00034781,7]
[320405944,1711361143177,-23.86622934,0.00035,2]
[320405945,1711361143274,500.0,0.00028487,2]
[320405946,1711361159401,500.0,0.00028487,2]
[320405947,1711361179273,500.0,0.00028487,2]
[320405948,1711361199295,500.0,0.00028487,2]
[320405949,1711361221284,500.0,0.00028487,2]
[320405950,1711361224579,617.73703242,0.00028521,2]
[320405951,1711361247279,500.0,0.00028487,2]
[320405952,1711361248097,-177.551732,0.00035074,2]
[320405953,1711361248118,-98.36946618,0.00038126,4]
[320405954,1711361265285,500.0,0.00028521,2]
[320405955,1711361285315,500.0,0.00028521,2]
[320405957,1711361303288,500.0,0.00028521,2]
[320405958,1711361319418,341.82055869,0.00028521,2]
[320405959,1711361348230,-1822.42783438,0.00038127,2]
[320405960,1711361348251,-865.39980906,0.00038128,4]
[320405961,1711361348276,-200.0,0.00038129,2]
[320405962,1711361348298,-166.666666,0.00039013,2]
[320405963,1711361348319,-183.753945,0.00039619,2]
[320405964,1711361348338,-923.262433,0.00039631,2]
[320405965,1711361348361,-250.0,0.00039768,2]
[320405966,1711361348384,-4863.2224239,0.00039888,2]
[320405967,1711361348404,-626.2317794,0.00041472,4]
[320405968,1711361348427,-616.54281862,0.00041472,4]
[320405969,1711361348448,-154.92256349,0.00041473,4]
[320405970,1711361348470,-395.68057894,0.00041475,2]
[320405971,1711361348492,-160.79348001,0.00041918,4]
[320405972,1711361348513,-24900.0,0.00041919,2]
[320405973,1711361348533,-441.39012,0.00042375,120]
[320405974,1711361348553,-1475.78282209,0.00045408,4]
[320405975,1711361348572,-290.88584953,0.00045408,4]
[320405976,1711361348593,-1341.24844056,0.00045408,4]
[320405977,1711361348616,-974.56213166,0.00045408,4]
[320405978,1711361348637,-1046.40790808,0.00045408,4]
[320405979,1711361348791,-3181.0535575,0.00045408,4]
[320405980,1711361348817,-1906.6741137,0.00045408,120]
[320405981,1711361348836,-375.93609161,0.00045409,2]
[320405982,1711361348859,-7072.52941884,0.00045409,4]
[320405983,1711361348880,-283.96464392,0.00047816,2]
[320405984,1711361348900,-311.73169908,0.000479,2]
[320405985,1711361348922,-500.0,0.00047915,120]
[320405986,1711361348942,-500.0,0.00047915,120]
[320405987,1711361348963,-500.0,0.00047915,120]
[320405988,1711361348985,-500.0,0.00047915,120]
[320405989,1711361349005,-500.0,0.00047915,120]
[320405990,1711361349025,-500.0,0.00047915,120]
[320405991,1711361349045,-500.0,0.00047915,120]
[320405992,1711361349066,-500.0,0.00047915,120]
[320405993,1711361349088,-500.0,0.00047915,120]
[320405994,1711361349107,-500.0,0.00047915,120]
[320405995,1711361349128,-500.0,0.00047915,120]
[320405996,1711361349148,-500.0,0.00047915,120]
[320405997,1711361349168,-500.0,0.00047915,120]
[320405998,1711361349196,-500.0,0.00047915,120]
[320405999,1711361349216,-500.0,0.00047915,120]
[320406000,1711361349236,-500.0,0.00047915,120]
[320406001,1711361349256,-500.0,0.00047915,120]
[320406002,1711361349276,-500.0,0.00047915,120]
[320406003,1711361349298,-500.0,0.00047915,120]
[320406004,1711361349318,-500.0,0.00047915,120]
[320406005,1711361349338,-500.0,0.00047915,120]
[320406006,1711361349360,-500.0,0.00047915,120]
[320406007,1711361349382,-500.0,0.00047915,120]
[320406008,1711361349403,-500.0,0.00047915,120]
[320406009,1711361349424,-500.0,0.00047915,120]
[320406010,1711361349444,-500.0,0.00047915,120]
[320406011,1711361349466,-500.0,0.00047915,120]
[320406012,1711361349487,-500.0,0.00047915,120]
[320406013,1711361349508,-500.0,0.00047915,120]
[320406014,1711361349530,-500.0,0.00047915,120]
[320406015,1711361349553,-500.0,0.00047915,120]
[320406016,1711361349573,-500.0,0.00047915,120]
[320406017,1711361349596,-500.0,0.00047915,120]
[320406018,1711361349620,-500.0,0.00047915,120]
[320406019,1711361349641,-500.0,0.00047915,120]
[320406020,1711361349661,-500.0,0.00047915,120]
[320406021,1711361349681,-500.0,0.00047915,120]
[320406022,1711361349707,-500.0,0.00047915,120]
[320406023,1711361349735,-500.0,0.00047915,120]
[320406024,1711361349765,-500.0,0.00047915,120]
[320406025,1711361349786,-202.06151488,0.00047915,120]
[320406026,1711361349806,-500.0,0.00047915,120]
[320406027,1711361349830,-500.0,0.00047915,120]
[320406028,1711361349852,-500.0,0.00047915,120]
[320406029,1711361349879,-500.0,0.00047915,120]
[320406030,1711361349900,-650.0,0.00047915,120]
[320406031,1711361349921,-500.0,0.00047915,120]
[320406032,1711361349942,-9110.77907689,0.00047919,30]
[320406033,1711361349966,-275.38556658,0.00048,90]
[320406034,1711361350002,-3554.24800904,0.000486,30]
[320406035,1711361350024,-283.9646439,0.00048782,2]
[320406036,1711361350045,-157.21683272,0.00048821,3]
[320406037,1711361350071,-3441.48938515,0.00048854,4]
[320406038,1711361350104,-3152.65753721,0.00048854,4]
[320406039,1711361350130,-1053.62472438,0.00048856,4]
[320406040,1711361350150,-3486.68400689,0.00048857,120]
[320406041,1711361350171,-2692.46003568,0.00048899,90]
[320406043,1711361360106,-368.73313466,0.00048,120]
[320406133,1711361432520,-3827.12842051,0.00028507,2]
[320406135,1711361432529,-164.95530229,0.00028507,2]
[320406137,1711361432540,-176.0,0.00028507,30]
[320406139,1711361432549,-207.82113272,0.000465,2]
[320406140,1711361432560,-236.26686534,0.00048,120]
[320406142,1711361432570,-2082.77466787,0.00048288,7]
[320406145,1711361432582,-2677.44627907,0.00048289,90]
[320406146,1711361432593,-157.21683272,0.00048821,3]
[320406149,1711361432603,-920.79514438,0.00049187,4]
[320406150,1711361432613,-404.1574845,0.00049314,4]
[320406152,1711361432622,-2795.0346053,0.00049314,30]
[320406154,1711361432631,-12.26962044,0.00049315,120]
[320406157,1711361432643,-19987.73037956,0.00049315,120]
[320406159,1711361432652,-283.9646439,0.00049748,2]
[320406161,1711361432662,-500.0,0.00049998,120]
[320406162,1711361432671,-213.99167408,0.00049998,120]
[320406163,1711361432680,-2143.82794106,0.0005,60]
[320406165,1711361432693,-2675.71110967,0.0005,4]
[320406166,1711361432703,-2673.36749065,0.0005,120]
[320406168,1711361432714,-1000.0,0.0005,120]
[320406169,1711361432724,-2100.80776162,0.0005,30]
[320406170,1711361432737,-7899.19223838,0.0005,30]
[320406171,1711361432746,-10000.0,0.0005,7]
[320406172,1711361432756,-10000.0,0.0005,2]
[320406173,1711361432766,-10000.0,0.0005,2]
[320406174,1711361432776,-500.0,0.0005,120]
[320406175,1711361432786,-8786.54710428,0.0005,120]
[320406176,1711361432796,-283.9646439,0.00050713,2]
[320406177,1711361432806,-1056.99108968,0.00051,120]
[320406178,1711361432815,-150.89437394,0.00051268,2]
[320406179,1711361432826,-207.82113272,0.000515,2]
[320406180,1711361432835,-283.9646439,0.00051679,2]
[320406181,1711361432846,-2758.907326,0.000517,81]
[320406182,1711361432856,-400.0,0.000517,29]
[320406183,1711361432866,-166.28810042,0.00051723,4]
[320406184,1711361432875,-1315.78132404,0.00051723,7]
[320406185,1711361432886,-930.95477622,0.00051723,30]
[320406186,1711361432896,-551.16066515,0.00051777,4]
[320406187,1711361432905,-180.22166268,0.00051777,4]
[320406188,1711361432915,-167.36856254,0.00051777,4]
[320406189,1711361432924,-270.55201027,0.00051777,4]
[320406190,1711361432934,-156.49281143,0.00051777,4]
[320406191,1711361432944,-155.31879382,0.00051777,4]
[320406192,1711361432954,-229.2473732,0.00051777,4]
[320406193,1711361432965,-445.27582747,0.00051777,2]
[320406194,1711361432976,-299.17163132,0.00051777,2]
[320406195,1711361432992,-500.0,0.00051777,2]
[320406196,1711361433002,-20000.0,0.00051777,120]
[320406197,1711361433013,-155.80068588,0.00051778,4]
[320406198,1711361433025,-170.33664032,0.00051778,4]
[320406199,1711361433036,-155.64112387,0.00051778,4]
[320406200,1711361433047,-181.91902324,0.00051778,4]
[320406201,1711361433058,-183.1544279,0.00051778,4]
[320406202,1711361433068,-322.69074111,0.00051778,4]
[320406203,1711361433079,-255.02565286,0.00051778,4]
[320406204,1711361433091,-605.14923493,0.00051778,4]
[320406205,1711361433101,-183.99989414,0.00051778,4]
[320406206,1711361433111,-212.24459519,0.00051778,4]
[320406207,1711361433122,-584.2705554,0.00051778,14]
[320406260,1711361438359,-19.88663999,0.00049999,120]
[320406266,1711361440214,-480.11336001,0.00049999,120]
[320406267,1711361440223,-500.0,0.00049999,120]
[320406268,1711361440233,-185.20615149,0.00049999,120]
[320406269,1711361440244,-500.0,0.00049999,120]
[320406270,1711361440253,-500.0,0.00049999,120]
[320406271,1711361440263,-500.0,0.00049999,120]
[320406272,1711361440273,-500.0,0.00051777,120]
[320406273,1711361440283,-500.0,0.00051777,120]
[320406274,1711361440292,-613.50403878,0.00051777,120]
[320406275,1711361440303,-500.0,0.00051777,120]
[320406276,1711361440312,-500.0,0.00051777,120]
[320406277,1711361440322,-500.0,0.00051777,120]
[320406278,1711361440331,-500.0,0.00051777,120]
[320406279,1711361440341,-315.40557852,0.00051777,120]
[320406280,1711361440350,-500.0,0.00051777,120]
[320406281,1711361440361,-500.0,0.00051777,120]
[320406282,1711361440371,-500.0,0.00051777,120]
[320406283,1711361440380,-500.0,0.00051777,120]
[320406284,1711361440389,-500.0,0.00051777,120]
[320406285,1711361440398,-500.0,0.00051777,120]
[320406286,1711361440407,-500.0,0.00051777,120]
[320406287,1711361440416,-500.0,0.00051777,120]
[320406288,1711361440426,-504.85237751,0.00051777,120]
[320406289,1711361440435,-500.0,0.00051777,120]
[320406290,1711361440445,-500.0,0.00051777,120]
[320406291,1711361440454,-500.0,0.00051777,120]
[320406292,1711361440463,-500.0,0.00051777,120]
[320406293,1711361440472,-500.0,0.00051777,120]
[320406294,1711361440482,-500.0,0.00051777,120]
[320406295,1711361440491,-500.0,0.00051777,120]
[320406296,1711361440500,-500.0,0.00051777,120]
[320406297,1711361440509,-500.0,0.00051777,120]
[320406298,1711361440518,-500.0,0.00051777,120]
[320406299,1711361440527,-500.0,0.00051777,120]
[320406300,1711361440536,-500.0,0.00051777,120]
[320406301,1711361440545,-443.82037598,0.00051778,14]
[320406302,1711361440555,-169.94400268,0.00051778,4]
[320406303,1711361440564,-157.74893899,0.00051778,4]
[320406304,1711361440572,-20000.0,0.00051778,120]
[320406305,1711361440582,-3652.68762388,0.00051779,61]
[320406306,1711361440592,-789.94793576,0.00051779,4]
[320406307,1711361440601,-3497.23079704,0.00051779,4]
[320406308,1711361440610,-500.0,0.00051779,60]
[320406309,1711361440620,-20000.0,0.00051779,120]
[320406310,1711361440629,-770.53881936,0.00051779,120]
[320406311,1711361440642,-7020.65667903,0.00051779,120]
[320406312,1711361440659,-5433.15827613,0.00051779,120]
[320406313,1711361440670,-6518.6143,0.00051779,120]
[320406333,1711361443580,-305.99643175,0.00051777,120]
[320406334,1711361443590,-257.03192548,0.00051779,120]
[320406335,1711361443600,-20000.0,0.00051779,120]
[320406336,1711361443609,-20000.0,0.00051779,120]
[320406337,1711361443619,-12946.67963182,0.00051779,120]
[320406338,1711361443642,-0.02241734,0.00051779,120]
[320406360,1711361446266,-157.21683272,0.00051259,3]
[320406361,1711361446275,-1314.44706539,0.00051777,15]
[320406362,1711361446285,-7053.29795084,0.00051779,120]
[320406363,1711361446294,-8250.1,0.00051779,120]
[320406364,1711361446303,-20000.0,0.00052053,120]
[320406365,1711361446312,-20000.0,0.00052053,120]
[320406366,1711361446321,-5000.0,0.00052054,120]
[320406367,1711361446330,-4508.37308013,0.00052054,120]
[320406368,1711361446339,-1000.0,0.00052054,120]
[320406369,1711361446348,-1000.0,0.00052054,120]
[320406370,1711361446358,-1000.0,0.00052054,120]
[320406372,1711361446367,-1000.0,0.00052054,120]
[320406374,1711361446376,-1000.0,0.00052054,120]
[320406375,1711361446386,-1000.0,0.00052054,120]
[320406377,1711361446395,-1000.0,0.00052054,120]
[320406379,1711361446406,-1000.0,0.00052054,120]
[320406380,1711361446415,-1000.0,0.00052054,120]
[320406382,1711361446425,-1000.0,0.00052054,120]
[320406383,1711361446435,-1000.0,0.00052054,120]
[320406384,1711361446444,-1000.0,0.00052054,120]
[320406385,1711361446456,-1000.0,0.00052054,120]
[320406386,1711361446465,-1000.0,0.00052054,120]
[320406387,1711361446474,-1000.0,0.00052054,120]
[320406389,1711361446483,-695.80237289,0.00052054,120]
[320406390,1711361446492,-1518.05,0.00052054,120]
[320406391,1711361446502,-1518.05,0.00052054,120]
[320406392,1711361446511,-1518.05,0.00052054,120]
[320406393,1711361446520,-1518.05,0.00052054,120]
[320406394,1711361446530,-1518.05,0.00052054,120]
[320406395,1711361446539,-1518.05,0.00052054,120]
[320406396,1711361446548,-1518.05,0.00052054,120]
[320406397,1711361446558,-1518.05,0.00052054,120]
[320406398,1711361446568,-1518.05,0.00052054,120]
[320406399,1711361446577,-1518.05,0.00052054,120]
[320406400,1711361446588,-1518.05,0.00052054,120]
[320406401,1711361446598,-1518.05,0.00052054,120]
[320406402,1711361446608,-1518.05,0.00052054,120]
[320406403,1711361446617,-1518.05,0.00052054,120]
[320406404,1711361446627,-1518.05,0.00052054,120]
[320406405,1711361446637,-1518.05,0.00052054,120]
[320406406,1711361446647,-1518.05,0.00052054,120]
[320406407,1711361446656,-1518.05,0.00052054,120]
[320406408,1711361446666,-1518.05,0.00052054,120]
[320406409,1711361446675,-1518.05,0.00052054,120]
[320406410,1711361446684,-1518.05,0.00052054,120]
[320406411,1711361446693,-1518.05,0.00052054,120]
[320406412,1711361446705,-1518.05,0.00052054,120]
[320406413,1711361446715,-1518.09960963,0.00052054,120]
[320406414,1711361446724,-301.78874788,0.0005213,4]
[320406415,1711361446733,-500.0,0.00052464,60]
[320406416,1711361446743,-1537.7459813,0.00052502,4]
[320406417,1711361446752,-2852.78581658,0.00052503,120]
[320406418,1711361446761,-20000.0,0.000526,120]
[320406419,1711361446770,-151.0,0.000526,7]
[320406420,1711361446780,-151.0,0.000526,7]
[320406421,1711361446789,-375.525077,0.000526,7]
[320406422,1711361446799,-375.525077,0.000526,7]
[320406423,1711361446808,-151.0,0.000526,7]
[320406424,1711361446817,-8250.1,0.00052601,120]
[320406425,1711361446827,-500.0,0.00053149,60]
[320406426,1711361446837,-155.11353055,0.00053418,60]
[320406427,1711361446847,-151.0,0.00053422,7]
[320406428,1711361446856,-151.0,0.00053422,7]
[320406429,1711361446866,-8250.1,0.00053423,120]
[320406430,1711361446875,-1500.0,0.000535,120]
[320406431,1711361446885,-2500.0,0.000535,120]
[320406432,1711361446895,-691.503838,0.0005357,7]
[320406433,1711361446904,-691.503838,0.0005357,7]
[320406434,1711361446913,-151.0,0.0005357,7]
[320406435,1711361446924,-325.654405,0.0005357,7]
[320406436,1711361446934,-325.654405,0.0005357,7]
[320406437,1711361446944,-151.0,0.0005357,7]
[320406438,1711361446955,-998.0,0.00053571,30]
[320406439,1711361446964,-151.0,0.00053599,7]
[320406440,1711361446974,-151.0,0.00053599,7]
[320406441,1711361446983,-9983.01189213,0.000537,120]
[320406442,1711361446996,-500.0,0.00053834,60]
[320406443,1711361447005,-1000.0,0.00054,120]
[320406444,1711361447025,-235.6637,0.00054097,2]
[320406445,1711361447042,-500.0,0.00054114,29]
[320406446,1711361447063,-8250.1,0.00054245,120]
[320406447,1711361447086,-3380.07643205,0.00054349,120]
[320406448,1711361447110,-3380.07643205,0.00054364,120]
[320406449,1711361447134,-1062.73588844,0.00054364,120]
[320406450,1711361447157,-3380.07643205,0.00054365,120]
[320406451,1711361447180,-1062.73588844,0.00054367,120]
[320406452,1711361447202,-2703.10600672,0.00054368,120]
[320406453,1711361447212,-2703.10600672,0.00054374,120]
[320406454,1711361447222,-58917.93033711,0.00054374,120]
[320406455,1711361447869,-14010.88956121,0.00054374,120]
[320406467,1711361539442,160.92436103,0.0003278,7]
[320406469,1711361597927,6949.50197776,0.00032452,2]
[320406470,1711361599833,500.0,0.0003278,4]
[320406471,1711361611849,500.0,0.0003278,4]
[320406472,1711361617931,1797.8625369,0.00032452,2]
[320406474,1711361627858,500.0,0.0003278,4]
[320406475,1711361645882,500.0,0.00032452,4]
[320406477,1711361663847,500.0,0.00032452,4]
[320406478,1711361667718,193.55938327,0.00032452,20]
[320406479,1711361683858,500.0,0.00032452,4]
[320406480,1711361699853,500.0,0.00032452,4]
[320406481,1711361711840,-160.92436103,0.00041297,30]